fUST/lending_fUST_20240118
["ID","MTS","AMOUNT","RATE_DAILY","PERIOD"]
[312019723,1705552243207,-151.0,0.00035456,4]
[312019725,1705552243217,-40344.67954054,0.000355,14]
[312019727,1705552243226,-388.487504,0.00035538,2]
[312019729,1705552243235,-414.38667,0.00035538,2]
[312019732,1705552243245,-210.646558,0.00035538,2]
[312019734,1705552243254,-160.574835,0.00035538,2]
[312019736,1705552243263,-500.0,0.00035616,2]
[312019737,1705552243273,-500.0,0.00035616,2]
[312019740,1705552243283,-500.0,0.00035616,2]
[312019742,1705552243293,-500.0,0.00035616,2]
[312019743,1705552243303,-500.0,0.00035616,2]
[312019745,1705552243312,-500.0,0.00035616,2]
[312019748,1705552243323,-500.0,0.00035616,2]
[312019749,1705552243332,-500.0,0.00035616,2]
[312019752,1705552243347,-500.0,0.00035616,2]
[312019753,1705552243357,-500.0,0.00035616,2]
[312019755,1705552243367,-500.0,0.00035616,2]
[312019757,1705552243381,-500.0,0.00035616,2]
[312019760,1705552243391,-500.0,0.00035616,2]
[312019761,1705552243401,-500.0,0.00035616,2]
[312019764,1705552243413,-500.0,0.00035616,2]
[312019766,1705552243422,-500.0,0.00035616,2]
[312019767,1705552243431,-259.46435459,0.00035616,2]
[312019770,1705552243442,-1320.97,0.00035616,2]
[312019772,1705552243451,-1599.213012,0.00035616,120]
[312019774,1705552243460,-160.0,0.00035631,8]
[312019776,1705552243469,-177.84490951,0.00035678,7]
[312019777,1705552243479,-201.95961414,0.000357,2]
[312019780,1705552243488,-5000.0,0.00035723,2]
[312019782,1705552243498,-160.0,0.0003585,9]
[312019784,1705552243507,-1320.97,0.0003589,2]
[312019786,1705552243517,-220.0,0.0003589,2]
[312019787,1705552243527,-150.0,0.0003589,2]
[312019790,1705552243536,-153.23014305,0.00035898,7]
[312019792,1705552243546,-177.84490951,0.00035946,7]
[312019793,1705552243555,-317.32608757,0.00036,120]
[312019795,1705552243564,-1000.0,0.00036,36]
[312019797,1705552243573,-220.0,0.00036,2]
[312019799,1705552243582,-150.0,0.00036,2]
[312019801,1705552243591,-170.0,0.00036,2]
[312019803,1705552243603,-273.0,0.00036,2]
[312019805,1705552243613,-273.0,0.00036,2]
[312019807,1705552243622,-177.84490951,0.00036065,7]
[312019808,1705552243631,-160.0,0.00036069,10]
[312019809,1705552243639,-151.0,0.00036103,4]
[312019810,1705552243648,-1320.97,0.00036164,2]
[312019811,1705552243657,-253.68156427,0.0003624,2]
[312019812,1705552243666,-160.0,0.00036288,11]
[312019813,1705552243674,-155.0,0.0003638,2]
[312019814,1705552243683,-177.84490951,0.00036393,7]
[312019815,1705552243692,-201.95961414,0.000364,2]
[312019816,1705552243701,-1320.9795595,0.00036438,2]
[312019817,1705552243709,-160.0,0.00036507,12]
[312019818,1705552243718,-388.487504,0.00036556,2]
[312019819,1705552243727,-414.38667,0.00036556,2]
[312019820,1705552243736,-210.646558,0.00036556,2]
[312019821,1705552243745,-160.574835,0.00036556,2]
[312019822,1705552243753,-6037.60396938,0.000367,2]
[312019823,1705552243762,-160.0,0.00036726,13]
[312019824,1705552243771,-150.5,0.0003673,30]
[312019825,1705552243780,-150.5,0.0003674,30]
[312019826,1705552243789,-151.0,0.00036749,4]
[312019827,1705552243798,-424.0,0.00036773,30]
[312019828,1705552243807,-424.0,0.00036783,30]
[312019830,1705552243816,-57312.84002423,0.000368,10]
[312019833,1705552243834,-10202.84952288,0.000368,10]
[312019893,1705552244406,-184.41586934,0.00021546,2]
[312019895,1705552244415,-500.0,0.00031897,2]
[312019897,1705552244425,-500.0,0.00031897,2]
[312019899,1705552244434,-500.0,0.00031897,2]
[312019901,1705552244443,-529.73967421,0.00031897,2]
[312019903,1705552244452,-500.0,0.00031897,2]
[312019905,1705552244462,-500.0,0.00031897,2]
[312019908,1705552244471,-641.09836514,0.00031897,2]
[312019909,1705552244480,-500.0,0.00032876,7]
[312019911,1705552244489,-647.30475566,0.00032876,7]
[312019913,1705552244498,-500.0,0.00032876,7]
[312019915,1705552244508,-500.0,0.00032876,7]
[312019917,1705552244516,-605.82377385,0.00032876,7]
[312019919,1705552244525,-1808.94449132,0.000368,10]
[312020079,1705552246027,-6261.81298273,0.00031896,4]
[312021003,1705553438264,-154.93802479,0.00019983,2]
[312021004,1705553438273,-154.93802479,0.00019984,2]
[312021005,1705553438283,-688.82709207,0.00019985,2]
[312021006,1705553438293,-1113.73927963,0.00019986,2]
[312021007,1705553438302,-192.82732,0.0002,2]
[312021008,1705553438311,-238.02437486,0.0002,2]
[312021009,1705553438321,-678.05962952,0.00020252,2]
[312021010,1705553438332,-15903.84683037,0.00020253,2]
[312021011,1705553438344,-11992.91694404,0.00020254,2]
[312021012,1705553438353,-470.34681749,0.00020256,2]
[312021013,1705553438363,-2072.13666013,0.00020256,2]
[312021014,1705553438372,-521.29319614,0.00020256,2]
[312021015,1705553438382,-2101.67947703,0.00020257,2]
[312021016,1705553438392,-24900.0,0.00020259,2]
[312021017,1705553438402,-327.24959811,0.00021,2]
[312021018,1705553438411,-1815.75822214,0.00021,2]
[312021019,1705553438423,-6761.51571557,0.0002145,2]
[312021020,1705553438432,-166.666666,0.00021918,2]
[312021021,1705553438442,-293.23530462,0.00022,4]
[312021022,1705553438451,-425.62034809,0.00022,2]
[312021023,1705553438461,-3959.1053351,0.00022,2]
[312021024,1705553438470,-200.0,0.00022277,7]
[312021025,1705553438480,-166.666666,0.00022431,2]
[312021026,1705553438490,-166.666666,0.00022944,2]
[312021027,1705553438499,-166.666666,0.00023456,2]
[312021028,1705553438508,-166.666666,0.00023969,2]
[312021029,1705553438517,-4010.78536694,0.00024,2]
[312021030,1705553438527,-1830.62942806,0.00024,2]
[312021031,1705553438536,-166.666666,0.00024482,2]
[312021032,1705553438546,-280.0,0.00024505,7]
[312021033,1705553438555,-497.89805688,0.0002495,5]
[312021034,1705553438565,-4718.82684458,0.00025,2]
[312021035,1705553438574,-3000.0,0.00025,2]
[312021036,1705553438583,-1045.45812768,0.00025,2]
[312021037,1705553438593,-325.51921824,0.00025939,2]
[312021038,1705553438602,-454.84460142,0.00025939,2]
[312021039,1705553438611,-260.54316135,0.00025939,2]
[312021040,1705553438621,-155.66061361,0.00025939,2]
[312021041,1705553438630,-154.9690062,0.00025939,2]
[312021042,1705553438639,-275.51747336,0.00025939,2]
[312021043,1705553438648,-246.7863507,0.00025939,2]
[312021044,1705553438658,-861.81666274,0.00025939,2]
[312021045,1705553438667,-7459.74194526,0.00025939,2]
[312021046,1705553438677,-217.44780013,0.00025939,2]
[312021047,1705553438688,-5172.11475059,0.00025939,2]
[312021048,1705553438697,-526.29712741,0.00026,2]
[312021049,1705553438707,-391.0,0.00026956,15]
[312021050,1705553438716,-155.0,0.00027397,2]
[312021051,1705553438725,-207.768873,0.00027397,2]
[312021052,1705553438735,-265.898113,0.00027397,2]
[312021053,1705553438745,-175.538798,0.00027397,2]
[312021054,1705553438755,-1198.67,0.00027398,3]
[312021055,1705553438764,-1871.52,0.00027398,3]
[312021056,1705553438773,-352.53020775,0.00027408,3]
[312021057,1705553438782,-168143.90525588,0.00027408,2]
[312021058,1705553438791,-40928.75941065,0.00027633,3]
[312021059,1705553438800,-7316.60031409,0.00027633,3]
[312021060,1705553438809,-4678.37229723,0.00027633,3]
[312021061,1705553438818,-8270.67686649,0.00027633,3]
[312021062,1705553438827,-290.00241025,0.00028,2]
[312021063,1705553438836,-345.5207472,0.00028,2]
[312021064,1705553438845,-207.768873,0.00028415,2]
[312021065,1705553438854,-265.898113,0.00028415,2]
[312021066,1705553438863,-310.0,0.00028767,2]
[312021067,1705553438871,-2455.73923901,0.00029,2]
[312021068,1705553438880,-154.93802479,0.00029,2]
[312021069,1705553438889,-207.768873,0.00029432,2]
[312021070,1705553438898,-265.898113,0.00029432,2]
[312021071,1705553438906,-170.929524,0.00029433,2]
[312021072,1705553438917,-200.0,0.00029651,15]
[312021073,1705553438926,-348.0,0.00029651,15]
[312021074,1705553438935,-154.95351395,0.0003,4]
[312021075,1705553438944,-682.23213824,0.0003,3]
[312021076,1705553438954,-243.91959085,0.0003,4]
[312021077,1705553438963,-154.93802479,0.0003,2]
[312021078,1705553438972,-640.81580837,0.0003,4]
[312021079,1705553438981,-687.89788967,0.0003,4]
[312021080,1705553438992,-201.08171049,0.0003,4]
[312021081,1705553439003,-227.0,0.0003,2]
[312021082,1705553439014,-1480.0983531,0.00030017,2]
[312021083,1705553439023,-509.59366167,0.00030017,2]
[312021084,1705553439034,-950.0,0.00030136,2]
[312021085,1705553439044,-175.538798,0.00030247,2]
[312021086,1705553439054,-12243.87665029,0.00030301,5]
[312021087,1705553439063,-950.0,0.0003041,2]
[312021088,1705553439072,-207.768873,0.0003045,2]
[312021089,1705553439081,-265.898113,0.0003045,2]
[312021090,1705553439090,-950.0,0.00030684,2]
[312021091,1705553439101,-950.0,0.00030958,2]
[312021092,1705553439110,-169.0,0.0003117,30]
[312021093,1705553439120,-169.0,0.0003118,30]
[312021094,1705553439131,-169.0,0.0003119,30]
[312021095,1705553439141,-620.00000002,0.00031226,2]
[312021096,1705553439149,-950.0,0.00031232,2]
[312021097,1705553439160,-152.43849387,0.00031411,7]
[312021098,1705553439169,-207.768873,0.00031468,2]
[312021099,1705553439178,-265.898113,0.00031468,2]
[312021100,1705553439187,-950.0,0.00031506,2]
[312021101,1705553439196,-950.0,0.0003178,2]
[312021102,1705553439206,-152.43849387,0.00031824,7]
[312021103,1705553439215,-152.43849387,0.00031888,7]
[312021104,1705553439224,-650.89335401,0.00031896,4]
[312021105,1705553439234,-4459.3054765,0.00031896,4]
[312021106,1705553439248,-154.95351395,0.00031896,4]
[312021107,1705553439258,-195.1690538,0.00031896,4]
[312021108,1705553439267,-351.14579978,0.00031896,2]
[312021109,1705553439279,-154.95351395,0.00031896,2]
[312021110,1705553439290,-410.41281499,0.00031896,2]
[312021111,1705553439300,-2451.53804453,0.00031896,2]
[312021112,1705553439309,-283.01176432,0.00031896,3]
[312021113,1705553439322,-2000.0,0.000319,8]
[312021114,1705553439332,-3155.74824,0.0003191,8]
[312021115,1705553439341,-152.43849387,0.00031972,7]
[312021116,1705553439352,-2000.0,0.00032,8]
[312021117,1705553439361,-1550.870845,0.00032,2]
[312021118,1705553439370,-2000.0,0.0003201,8]
[312021119,1705553439380,-2000.0,0.0003202,8]
[312021120,1705553439389,-2000.0,0.0003203,8]
[312021121,1705553439470,-2000.0,0.0003204,8]
[312021122,1705553439480,-2000.0,0.0003205,8]
[312021123,1705553439489,-950.0,0.00032054,2]
[312021124,1705553439498,-2000.0,0.0003206,8]
[312021125,1705553439507,-2000.0,0.0003207,8]
[312021126,1705553439516,-2000.0,0.0003208,8]
[312021127,1705553439526,-2000.0,0.0003209,8]
[312021128,1705553439536,-2000.0,0.000321,8]
[312021129,1705553439545,-2000.0,0.0003211,8]
[312021130,1705553439554,-153.23014305,0.00032111,7]
[312021131,1705553439564,-2000.0,0.0003212,8]
[312021132,1705553439573,-2000.0,0.0003213,8]
[312021133,1705553439582,-153.23014305,0.00032136,7]
[312021134,1705553439592,-500.0,0.00032139,2]
[312021135,1705553439601,-573.65237783,0.00032139,2]
[312021136,1705553439610,-500.0,0.00032139,2]
[312021137,1705553439620,-500.0,0.00032139,2]
[312021138,1705553439630,-642.32950954,0.00032139,2]
[312021139,1705553439639,-221.30939356,0.00032139,2]
[312021140,1705553439650,-500.0,0.00032139,2]
[312021141,1705553439659,-500.0,0.00032139,2]
[312021142,1705553439669,-500.0,0.00032139,2]
[312021143,1705553439679,-500.0,0.00032139,2]
[312021144,1705553439688,-500.0,0.00032139,2]
[312021145,1705553439697,-500.0,0.00032139,2]
[312021146,1705553439707,-500.0,0.00032139,2]
[312021147,1705553439716,-500.0,0.00032139,2]
[312021148,1705553439726,-500.0,0.00032139,2]
[312021149,1705553439735,-500.0,0.00032139,2]
[312021150,1705553439745,-549.28619986,0.00032139,2]
[312021151,1705553439754,-460.5567179,0.00032139,2]
[312021152,1705553439764,-500.0,0.00032139,2]
[312021153,1705553439773,-500.0,0.00032139,2]
[312021154,1705553439782,-549.28619986,0.00032139,2]
[312021155,1705553439791,-500.0,0.00032139,2]
[312021156,1705553439800,-549.28619986,0.00032139,2]
[312021157,1705553439810,-549.28619986,0.00032139,2]
[312021158,1705553439819,-500.0,0.00032139,2]
[312021159,1705553439828,-500.0,0.00032139,2]
[312021160,1705553439839,-549.28619986,0.00032139,2]
[312021161,1705553439848,-549.28619986,0.00032139,2]
[312021162,1705553439857,-500.0,0.00032139,2]
[312021163,1705553439867,-500.0,0.00032139,2]
[312021164,1705553439877,-549.28619986,0.00032139,2]
[312021165,1705553439887,-500.0,0.00032139,2]
[312021166,1705553439896,-549.28619986,0.00032139,2]
[312021167,1705553439905,-549.28619986,0.00032139,2]
[312021168,1705553439914,-500.0,0.00032139,2]
[312021169,1705553439924,-500.0,0.00032139,2]
[312021170,1705553439932,-500.0,0.00032139,2]
[312021171,1705553439941,-549.28619986,0.00032139,2]
[312021172,1705553439950,-500.0,0.00032139,2]
[312021173,1705553439959,-500.0,0.00032139,2]
[312021174,1705553439969,-549.28619986,0.00032139,2]
[312021175,1705553439978,-549.28619986,0.00032139,2]
[312021176,1705553439986,-443.55106363,0.00032139,2]
[312021177,1705553439996,-500.0,0.00032139,2]
[312021178,1705553440005,-500.0,0.00032139,2]
[312021179,1705553440014,-500.0,0.00032139,2]
[312021180,1705553440023,-500.0,0.00032139,2]
[312021181,1705553440031,-549.28619986,0.00032139,2]
[312021182,1705553440040,-549.28619986,0.00032139,2]
[312021183,1705553440049,-549.28619986,0.00032139,2]
[312021184,1705553440058,-500.0,0.00032139,2]
[312021185,1705553440068,-549.28619986,0.00032139,2]
[312021186,1705553440077,-549.28619986,0.00032139,2]
[312021187,1705553440086,-500.0,0.00032139,2]
[312021188,1705553440095,-500.0,0.00032139,2]
[312021189,1705553440105,-549.28619986,0.00032139,2]
[312021190,1705553440114,-549.28619986,0.00032139,2]
[312021191,1705553440124,-500.0,0.00032139,2]
[312021192,1705553440133,-549.28619986,0.00032139,2]
[312021193,1705553440142,-500.0,0.00032139,2]
[312021194,1705553440151,-549.28619986,0.00032139,2]
[312021195,1705553440161,-163.21379333,0.00032139,2]
[312021196,1705553440171,-549.28619986,0.00032139,2]
[312021197,1705553440180,-500.0,0.00032139,2]
[312021198,1705553440189,-549.28619986,0.00032139,2]
[312021199,1705553440198,-549.28619986,0.00032139,2]
[312021200,1705553440208,-549.28619986,0.00032139,2]
[312021201,1705553440217,-549.28619986,0.00032139,2]
[312021202,1705553440226,-549.28619986,0.00032139,2]
[312021203,1705553440236,-500.0,0.00032139,2]
[312021205,1705553440250,-500.0,0.00032139,2]
[312021207,1705553440260,-2000.0,0.0003214,8]
[312021209,1705553440269,-2000.0,0.0003215,8]
[312021210,1705553440278,-2000.0,0.0003216,8]
[312021211,1705553440288,-2000.0,0.0003217,8]
[312021212,1705553440298,-2000.0,0.0003218,8]
[312021213,1705553440307,-2844.251759,0.0003219,8]
[312021214,1705553440316,-950.0,0.00032328,2]
[312021215,1705553440326,-153.23014305,0.00032397,7]
[312021216,1705553440336,-163.0,0.00032416,2]
[312021217,1705553440345,-202.416,0.00032416,2]
[312021218,1705553440354,-207.768873,0.00032485,2]
[312021219,1705553440363,-265.898113,0.00032485,2]
[312021220,1705553440372,-152.43849387,0.00032547,7]
[312021221,1705553440381,-950.0,0.00032602,2]
[312021222,1705553440391,-200.0,0.00032616,15]
[312021223,1705553440400,-200.0,0.00032616,15]
[312021224,1705553440410,-368.0,0.00032616,15]
[312021225,1705553440419,-152.43849387,0.00032704,7]
[312021226,1705553440428,-152.43849387,0.00032751,7]
[312021227,1705553440437,-152.43849387,0.00032767,7]
[312021228,1705553440446,-620.0,0.00032787,2]
[312021229,1705553440455,-365.51661901,0.00032876,7]
[312021230,1705553440464,-950.0,0.00032876,2]
[312021231,1705553440473,-168.397538,0.00032877,2]
[312021232,1705553440482,-168.397538,0.00032877,120]
[312021233,1705553440491,-4430.09591966,0.000329,2]
[312021234,1705553440500,-502.016768,0.00033,3]
[312021235,1705553440509,-1500.0,0.00033,2]
[312021236,1705553440518,-227.0,0.00033,2]
[312021237,1705553440526,-227.0,0.00033,2]
[312021238,1705553440535,-152.43849387,0.00033051,7]
[312021239,1705553440544,-152.43849387,0.0003309,7]
[312021240,1705553440553,-175.538798,0.00033096,2]
[312021241,1705553440561,-950.0,0.0003315,2]
[312021242,1705553440570,-950.0,0.00033424,2]
[312021243,1705553440579,-207.768873,0.00033503,2]
[312021244,1705553440587,-265.898113,0.00033503,2]
[312021245,1705553440596,-152.43849387,0.00033534,7]
[312021246,1705553440605,-190.142785,0.000336,5]
[312021247,1705553440614,-152.43849387,0.00033695,7]
[312021248,1705553440622,-950.0,0.00033698,2]
[312021249,1705553440631,-154.399349,0.000337,2]
[312021250,1705553440640,-151.853246,0.000337,2]
[312021251,1705553440649,-950.0,0.00033972,2]
[312021252,1705553440658,-1000.0,0.00034,7]
[312021253,1705553440667,-200.13788167,0.00034,2]
[312021254,1705553440676,-500.0,0.00034,3]
[312021255,1705553440685,-1500.0,0.00034,2]
[312021256,1705553440694,-200.0,0.00034,6]
[312021257,1705553440703,-245.009401,0.00034,7]
[312021258,1705553440713,-153.23014305,0.00034042,7]
[312021259,1705553440722,-153.23014305,0.00034111,7]
[312021260,1705553440732,-950.0,0.00034246,2]
[312021261,1705553440741,-10799.91264334,0.000345,7]
[312021262,1705553440750,-950.0,0.0003452,2]
[312021263,1705553440759,-207.768873,0.00034521,2]
[312021264,1705553440768,-265.898113,0.00034521,2]
[312021265,1705553440777,-950.0,0.00034794,2]
[312021266,1705553440786,-8080.6325034,0.00034798,4]
[312021267,1705553440796,-3077.35033163,0.000348,7]
[312021268,1705553440805,-550.12032437,0.000348,7]
[312021269,1705553440814,-351.75731558,0.000348,7]
[312021270,1705553440823,-621.8554035,0.000348,7]
[312021271,1705553440833,-500.0,0.0003496,2]
[312021272,1705553440842,-500.0,0.0003496,2]
[312021273,1705553440851,-500.0,0.0003496,2]
[312021274,1705553440859,-500.0,0.0003496,2]
[312021275,1705553440868,-500.0,0.0003496,2]
[312021276,1705553440878,-72127.60255705,0.00035,15]
[312021278,1705553440887,-3078.13460206,0.00035,4]
[312021280,1705553440896,-1104.18339118,0.00035,14]
[312021281,1705553440905,-6760.97413379,0.00035,4]
[312021282,1705553440914,-845.27485417,0.00035,2]
[312021284,1705553440989,-1004.53357033,0.00035,7]
[312021286,1705553440998,-154.93802479,0.00035,2]
[312021288,1705553441009,-563.33668439,0.00035,2]
[312021289,1705553441018,-475.72668137,0.00035,4]
[312021291,1705553441027,-168.26088609,0.00035,15]
[312021293,1705553441036,-156.26613286,0.00035,6]
[312021296,1705553441047,-500.0,0.00035,3]
[312021297,1705553441056,-950.0,0.00035068,2]
[312021299,1705553441065,-152.43849387,0.00035132,7]
[312021301,1705553441074,-152.43849387,0.00035243,7]
[312021302,1705553441084,-152.43849387,0.00035249,7]
[312021303,1705553441093,-153.23014305,0.0003525,7]
[312021305,1705553441102,-950.0,0.00035342,2]
[312021307,1705553441110,-154.399349,0.00035385,2]
[312021308,1705553441119,-150.0,0.00035416,2]
[312021310,1705553441128,-47176.40252344,0.000355,14]
[312021312,1705553441137,-207.768873,0.00035538,2]
[312021314,1705553441146,-265.898113,0.00035538,2]
[312021315,1705553441155,-500.0,0.00035616,2]
[312021316,1705553441164,-500.0,0.00035616,2]
[312021317,1705553441174,-500.0,0.00035616,2]
[312021318,1705553441184,-500.0,0.00035616,2]
[312021319,1705553441193,-500.0,0.00035616,2]
[312021320,1705553441203,-500.0,0.00035616,2]
[312021321,1705553441213,-500.0,0.00035616,2]
[312021322,1705553441222,-500.0,0.00035616,2]
[312021323,1705553441232,-500.0,0.00035616,2]
[312021324,1705553441245,-500.0,0.00035616,2]
[312021325,1705553441253,-500.0,0.00035616,2]
[312021326,1705553441263,-500.0,0.00035616,2]
[312021327,1705553441271,-500.0,0.00035616,2]
[312021328,1705553441282,-500.0,0.00035616,2]
[312021329,1705553441290,-500.0,0.00035616,2]
[312021330,1705553441299,-500.0,0.00035616,2]
[312021331,1705553441308,-265.24894371,0.00035616,2]
[312021332,1705553441319,-814.5595595,0.00035616,2]
[312021333,1705553441328,-1612.398478,0.00035616,120]
[312021334,1705553441337,-153.23014305,0.00035684,7]
[312021335,1705553441346,-5000.0,0.00035723,2]
[312021336,1705553441355,-200.0,0.00035878,15]
[312021337,1705553441364,-200.0,0.00035878,15]
[312021338,1705553441373,-200.0,0.00035878,15]
[312021339,1705553441383,-200.0,0.00035878,15]
[312021340,1705553441392,-275.0,0.00035878,15]
[312021341,1705553441401,-152.43849387,0.00035887,7]
[312021342,1705553441410,-175.538798,0.00035945,2]
[312021343,1705553441419,-185.0,0.00036,2]
[312021344,1705553441428,-170.0,0.00036,2]
[312021345,1705553441438,-196.0,0.00036,2]
[312021346,1705553441447,-227.0,0.00036,2]
[312021347,1705553441456,-227.0,0.00036,2]
[312021348,1705553441465,-152.43849387,0.00036264,7]
[312021349,1705553441474,-207.768873,0.00036556,2]
[312021350,1705553441484,-265.898113,0.00036556,2]
[312021351,1705553441494,-201.9192424,0.00036616,2]
[312021352,1705553441503,-169.0,0.00036769,30]
[312021353,1705553441512,-169.0,0.00036779,30]
[312021354,1705553441521,-169.0,0.00036789,30]
[312021355,1705553441530,-1263.91995503,0.00036798,3]
[312021356,1705553441540,-213.27149611,0.00036798,10]
[312021357,1705553441549,-224.27867122,0.00036798,4]
[312021358,1705553441559,-678.60233026,0.00036798,4]
[312021359,1705553441568,-896.80684674,0.00036798,4]
[312021360,1705553441577,-4170.85398458,0.00036798,4]
[312021361,1705553441587,-1196.44070962,0.00036799,4]
[312021362,1705553441596,-6144.47246439,0.000368,10]
[312021363,1705553441611,-10202.84952288,0.000368,10]
[312021364,1705553441756,-500.0,0.00032139,2]
[312021365,1705553441765,-302.24343004,0.00032139,2]
[312021366,1705553441784,-247.04276982,0.00032139,2]
[312021367,1705553441793,-269.80738518,0.00032139,2]
[312021375,1705553443372,-230.19261482,0.00032139,2]
[312021376,1705553443382,-549.28619986,0.00032139,2]
[312021377,1705553443393,-549.28619986,0.00032139,2]
[312021378,1705553443402,-1559.6,0.0003499,3]
[312021379,1705553443412,-14719.88634331,0.000368,10]
[312021380,1705553443424,-2606.86218237,0.000368,10]
[312021420,1705553446204,-461.0142744,0.000368,10]
[312021652,1705554638517,-688.82709207,0.00020082,2]
[312021653,1705554638527,-154.93802479,0.00020083,2]
[312021654,1705554638536,-1113.73927963,0.00020084,2]
[312021655,1705554638546,-170.929524,0.00020105,2]
[312021656,1705554638555,-2101.67947703,0.00020152,2]
[312021657,1705554638564,-470.34681749,0.00020152,2]
[312021658,1705554638573,-521.29319614,0.00020152,2]
[312021659,1705554638582,-4981.09611173,0.00020153,2]
[312021660,1705554638601,-2207.90754137,0.00020153,2]
[312021661,1705554638611,-4901.03616614,0.00020154,2]
[312021925,1705554641387,-270.33466,0.00020154,2]
[312021927,1705554641399,-19728.62917386,0.00020154,2]
[312021929,1705554641407,-7837.47204295,0.00020998,2]
[312021931,1705554641419,-243.16046045,0.00020998,2]
[312021933,1705554641428,-3299.85220412,0.00021,2]
[312021936,1705554641441,-2287.26626204,0.00021,2]
[312022454,1705554646417,-6252.80922841,0.00021,2]
[312022457,1705554646476,-350.98489009,0.00021,2]
[312023487,1705555637637,24900.0,0.00017877,2]
[312023488,1705555720403,154.93802479,0.00017877,2]
[312023489,1705555738388,155.10848219,0.00017877,2]
[312023490,1705555746171,-452.38875182,0.00018773,2]
[312023491,1705555746194,-154.93802479,0.00018773,3]
[312023492,1705555746213,-154.93802479,0.00018774,2]
[312023493,1705555746235,-176.76242325,0.00018777,2]
[312023494,1705555746255,-154.95351395,0.00018875,2]
[312023495,1705555746275,-154.95351395,0.00018875,2]
[312023496,1705555746296,-175.10808693,0.00018875,2]
[312023497,1705555746316,-6993.28459004,0.00018875,2]
[312023498,1705555766006,154.93802479,0.00016986,3]
[312023499,1705555782071,154.93802479,0.00016988,3]
[312023501,1705555808002,154.93802479,0.00016988,3]
[312023502,1705555823997,154.93802479,0.00016988,3]
[312023523,1705555832509,-456.95969186,0.00018873,2]
[312023525,1705555832519,-256.65212398,0.00018874,2]
[312023526,1705555832529,-8910.56224033,0.00018875,2]
[312023527,1705555832538,-286.17658089,0.00018876,2]
[312023528,1705555832548,-7646.1352338,0.00018876,2]
[312023529,1705555832558,-470.34681749,0.00018877,2]
[312023530,1705555832567,-81144.18594681,0.00018878,2]
[312023531,1705555832577,-8042.11875801,0.00018899,2]
[312023532,1705555832588,-2881.44704785,0.000189,2]
[312023537,1705555841535,-884.5924154,0.000189,2]
[312023558,1705555843586,-754.06236902,0.000189,2]
[312023560,1705555843596,-688.82709207,0.000189,2]
[312023562,1705555843605,-484.72964736,0.00019,2]
[312023851,1705556839991,233.698571,0.0001791,2]
[312023976,1705557040670,-154.93802479,0.00018042,2]
[312023977,1705557040680,-154.93802479,0.00018043,2]
[312023978,1705557040690,-1739.74835498,0.00018051,2]
[312023979,1705557040698,-250.0,0.00018052,2]
[312023981,1705557040707,-4184.18541405,0.000189,2]
[312023983,1705557040717,-688.82709207,0.000189,2]
[312023985,1705557040726,-2192.05655439,0.00018945,2]
[312023987,1705557040735,-1581.11940922,0.00019,2]
[312023989,1705557040744,-37.95810592,0.00019178,2]
[312023990,1705557040756,-121.75782508,0.00019178,2]
[312023991,1705557040765,-24900.0,0.00019334,2]
[312023992,1705557040774,-176.76242324,0.000194,2]
[312023993,1705557040783,-1113.73927963,0.000195,2]
[312023994,1705557040792,-154.9690062,0.0002,2]
[312023995,1705557040801,-2202.47507015,0.00021,2]
[312023996,1705557040810,-2082.71954556,0.00021,2]
[312023997,1705557040818,-300.0,0.00021,2]
[312023998,1705557040827,-327.24959811,0.00021,2]
[312023999,1705557040836,-1815.75822214,0.00021,2]